bitfinex-derivatives/quotes_ETHF0:USTF0_20251028
["timestamp","ask_amount","ask_price","bid_price","bid_amount"]
[1761662680883,0.44136343,4106.1,4105.7,1.3912]
[1761662681080,0.00296343,4106.1,4105.7,1.3912]
[1761662681281,0.00296343,4106.1,4106.0,1.3912]
[1761662681581,40.80296343,4106.1,4106.0,1.3912]
[1761662681984,41.24135343,4106.1,4106.0,1.3912]
[1761662682180,0.43841,4106.0,4105.6,3.2078]
[1761662682486,0.00296343,4106.1,4105.7,0.51123]
[1761662682673,0.00296343,4106.1,4106.0,1.3912]
[1761662682873,40.80296343,4106.1,4106.0,1.3912]
[1761662683287,0.00296343,4106.1,4106.0,1.3912]
[1761662684289,0.00296343,4106.1,4106.0,1.8296]
[1761662684587,0.43826,4107.4,4106.6,1.3912]
[1761662685082,3.2078,4107.7,4107.4,0.5294]
[1761662685289,3.2078,4107.7,4107.5,1.3912]
[1761662685585,3.21014937,4107.7,4107.5,1.3912]
[1761662686177,0.43824,4107.5,4107.4,0.5294]
[1761662686382,0.43827,4107.3,4107.0,1.3912]
[1761662686684,3.21014937,4107.7,4107.0,1.3912]
[1761662686884,0.43828,4107.2,4107.0,1.3912]
[1761662687481,3.21014937,4107.7,4107.0,1.3912]
[1761662687785,0.43823,4107.6,4107.0,1.3912]
[1761662687981,3.474718,4109.6,4106.3,0.5294]
[1761662687982,0.43811,4108.8,4107.6,1.3912]
[1761662688187,3.2078,4108.9,4107.4,0.5294]
[1761662688188,3.2078,4109.4,4108.7,0.43811]
[1761662688382,0.43801,4109.7,4109.0,1.3912]
[1761662688592,0.43798,4110.0,4109.6,0.5294]
[1761662688789,40.8,4109.9,4109.7,1.3912]
[1761662688989,41.23799,4109.9,4109.7,1.3912]
[1761662689185,40.8,4109.9,4109.7,1.3912]
[1761662689382,0.00191477,4110.0,4109.8,1.3912]
[1761662689887,40.8,4109.9,4109.8,1.3912]
[1761662690184,0.00191477,4110.0,4109.8,4.599]
[1761662690490,0.00191477,4110.0,4109.9,1.3912]
[1761662691884,0.00191477,4110.0,4108.1,1.09544]
[1761662691885,1.09526,4108.9,4107.8,1.3912]
[1761662692187,0.43822,4107.8,4107.5,1.3912]
[1761662692393,0.43822,4107.7,4107.5,1.3912]
[1761662692592,0.43819,4108.0,4107.5,1.3912]
[1761662692796,44.0078,4108.3,4107.5,1.3912]
[1761662692992,44.0078,4108.3,4107.5,1.39400293]
[1761662693294,0.43819,4108.1,4107.5,1.39400293]
[1761662693491,44.0078,4108.3,4107.5,1.83224293]
[1761662693691,41.23816,4108.3,4107.6,0.43823]
[1761662693989,41.23816,4108.3,4107.7,1.3912]
[1761662693990,0.43819,4108.1,4107.7,1.3912]
[1761662694194,0.43821,4107.9,4107.7,1.3912]
[1761662696595,0.43818,4108.1,4107.7,1.3912]
[1761662696796,40.8,4108.3,4107.9,1.3912]
[1761662697095,0.43819,4108.0,4107.9,1.3912]
[1761662697591,3.2078,4108.4,4107.9,1.3912]
[1761662697796,3.2078,4108.4,4108.0,1.464]
[1761662697997,0.43816,4108.3,4108.0,1.3912]
[1761662698596,3.2078,4109.0,4108.0,1.464]
[1761662698797,0.00191477,4110.0,4109.7,1.3912]
[1761662698998,0.43989477,4110.0,4109.7,1.3912]
[1761662699194,0.00191477,4110.0,4109.0,1.3912]
[1761662699392,1.09688477,4110.0,4109.0,1.3912]
[1761662699595,0.43807,4109.2,4109.0,1.3912]
[1761662699790,3.2078,4109.9,4109.0,1.3912]
[1761662700088,0.43807,4109.2,4109.0,1.3912]
[1761662700399,0.43811,4108.7,4108.6,1.3912]
[1761662700798,0.43816,4108.3,4108.1,3.2078]
[1761662701402,0.43821,4107.8,4107.5,0.00280293]
[1761662701694,0.43821,4107.9,4107.6,1.3912]
[1761662702092,40.8,4108.2,4107.6,1.3912]
[1761662702294,40.8,4108.2,4107.9,3.2078]
[1761662702497,0.43823,4107.6,4107.5,1.39400293]
[1761662702695,0.43823,4107.6,4107.5,0.00280293]
[1761662702897,0.51103,4107.6,4107.5,0.00280293]
[1761662703197,8.3742,4107.6,4106.5,1.3912]
[1761662703400,3.2078,4106.9,4106.3,1.3912]
[1761662703598,0.43843,4105.8,4105.7,1.3912]
[1761662703897,0.43845,4105.6,4105.4,4.599]
[1761662704099,0.43845,4105.6,4105.4,1.3912]
[1761662704295,0.44111436,4105.6,4105.4,1.39367015]
[1761662704603,40.8728,4105.5,4104.8,1.3524]
[1761662704793,3.2078,4105.2,4104.8,1.3524]
[1761662704997,3.2078,4105.2,4104.3,4.5602]
[1761662705202,0.0728,4105.1,4104.3,4.5602]
[1761662705398,0.0728,4105.1,4104.3,4.56261795]
[1761662705701,0.4353,4105.1,4104.3,0.00241795]
[1761662706005,0.43873,4102.9,4102.8,0.0243736]
[1761662706207,0.43883,4102.0,4100.3,1.3524]
[1761662706498,3.2078,4102.0,4101.3,4.5602]
[1761662706706,3.2078,4102.0,4101.3,2.41810544]
[1761662706897,0.43889,4101.5,4101.3,2.42110904]
[1761662707096,3.21000556,4102.0,4098.2,3.135]
[1761662707097,10.9748,4100.6,4098.2,3.135]
[1761662707411,3.2078,4098.3,4096.0,1.3524]
[1761662707700,3.2078,4096.7,4096.1,1.3524]
[1761662707895,3.2078,4096.7,4096.1,0.43945]
[1761662708096,2.07551268,4097.3,4096.6,4.5602]
[1761662708297,2.8067659,4100.7,4096.1,0.4395831]
[1761662708298,3.2078,4098.3,4097.9,1.9943]
[1761662708500,3.2078,4098.5,4097.9,1.9943]
[1761662708805,3.2078,4099.5,4099.3,1.9943]
[1761662709306,3.2078,4100.0,4099.5,2.22233275]
[1761662709506,3.21081305,4100.0,4099.6,1.9943]
[1761662709805,3.21081305,4100.0,4099.5,0.22803275]
[1761662710100,0.43918,4098.8,4097.7,1.9943]
[1761662710298,40.8,4099.6,4096.5,1.9943]
[1761662710299,3.2078,4097.9,4096.5,1.9943]
[1761662710508,3.2078,4097.2,4096.5,5.2021]
[1761662710699,3.2078,4097.2,4096.4,1.2101]
[1761662710700,3.2078,4096.6,4096.4,0.7733]
[1761662710899,3.2078,4096.6,4096.5,1.9943]
[1761662711100,3.2078,4097.7,4096.6,1.9943]
[1761662711294,3.2078,4097.2,4097.1,1.9943]
[1761662711499,3.2078,4097.2,4096.4,0.77602799]
[1761662711500,3.2814,4097.2,4096.4,0.00272799]
[1761662711703,3.2814,4097.2,4093.3,14.65108135]
[1761662711704,3.2078,4096.5,4094.6,3.2078]
[1761662711894,3.2078,4094.7,4093.7,3.2078]
[1761662712094,3.2078,4094.7,4091.6,1.09986]
[1761662712095,0.43969,4094.0,4091.2,0.43999]
[1761662712302,0.43969,4094.0,4091.1,3.2078]
[1761662712303,3.2078,4092.6,4091.5,1.9943]
[1761662712601,0.43985,4092.5,4091.4,3.2078]
[1761662712803,3.2078,4091.5,4089.3,3.2078]
[1761662713001,3.2078,4089.9,4086.9,3.2078]
[1761662713203,3.2078,4087.4,4085.9,5.2021]
[1761662713398,3.17977247,4086.7,4086.6,2.7676]
[1761662713598,3.2078,4087.3,4086.6,0.7733]
[1761662713796,3.2078,4086.7,4084.9,0.02654681]
[1761662714001,40.8,4085.2,4083.2,3.9811]
[1761662714201,3.2078,4083.3,4083.2,0.7733]
[1761662714400,11.01243,4086.6,4083.2,0.7733]
[1761662714599,11.01243,4086.6,4082.8,0.024493]
[1761662714600,3.2078,4083.6,4082.8,0.024493]
[1761662714803,3.2078,4082.9,4082.8,0.02675606]
[1761662715107,3.2078,4082.9,4081.6,0.7733]
[1761662715309,3.2078,4082.0,4081.7,5.54287133]
[1761662715502,3.2078,4083.2,4081.9,1.9943]
[1761662715803,11.01174,4086.8,4081.8,3.2078]
[1761662715804,3.2078,4085.5,4083.0,1.9943]
[1761662716008,11.00641,4088.8,4081.6,0.7733]
[1761662716009,3.2078,4086.9,4084.7,1.9943]
[1761662716311,3.2078,4085.2,4083.3,3.2078]
[1761662716497,3.2078,4084.2,4083.0,0.44087]
[1761662716805,3.2078,4086.5,4084.2,0.7733]
[1761662716998,3.2078,4086.5,4083.2,14.22915]
[1761662716999,2.0017,4085.5,4083.2,11.02131]
[1761662717198,2.0017,4085.5,4080.8,14.649]
[1761662717199,5.2095,4085.5,4080.8,14.649]
[1761662717398,2.0017,4086.2,4084.9,3.2078]
[1761662717706,3.2078,4085.5,4084.6,0.44069]
[1761662717908,3.2078,4087.2,4085.0,3.21431812]
[1761662718097,3.2078,4086.0,4085.0,0.0736]
[1761662718298,2.0017,4087.5,4084.6,14.653]
[1761662718299,0.00203313,4086.2,4085.6,1.9919]
[1761662718498,0.00203313,4086.2,4085.1,0.0736]
[1761662718499,0.00203313,4086.2,4085.1,1.9919]
[1761662718700,0.00203313,4086.2,4086.1,1.9919]
[1761662718901,0.00203313,4086.2,4085.9,3.2078]
[1761662719102,0.00203313,4086.2,4086.0,0.00233615]
[1761662719103,2.0753,4086.1,4086.0,0.00233615]
[1761662719295,0.00203313,4086.2,4085.7,1.9943]
[1761662719497,3.2078,4090.0,4087.0,1.9943]
[1761662719705,3.2078,4089.1,4087.7,3.2078]
[1761662719900,10.99973,4091.3,4089.0,3.2078]
[1761662719901,3.2078,4091.3,4089.0,3.2078]
[1761662720100,3.2078,4091.6,4089.5,1.9943]
[1761662720303,4.0289,4093.2,4091.5,3.2078]
[1761662720497,0.0736,4093.1,4091.5,3.2078]
[1761662720705,3.2078,4094.4,4092.8,1.9943]
[1761662720907,0.00304479,4093.2,4092.8,1.9943]
[1761662721107,3.2078,4094.4,4092.8,2.0679]
[1761662721411,3.2078,4093.9,4092.9,2.0679]
[1761662721711,0.19866747,4096.4,4091.5,0.00305601]
[1761662721712,3.2078,4093.2,4092.0,1.9943]
[1761662721900,2.0017,4093.8,4092.0,1.9943]
[1761662721901,3.2078,4092.6,4092.0,1.9943]
[1761662722104,10.98808,4095.6,4091.5,0.00305601]
[1761662722105,3.2078,4092.1,4091.5,0.00305601]
[1761662722306,2.89848556,4092.1,4091.6,1.9943]
[1761662722702,0.00256296,4092.1,4091.8,1.9943]
[1761662722903,5.2095,4092.0,4091.7,0.0736]
[1761662723103,0.0736,4091.6,4090.1,1.9943]
[1761662723316,3.2078,4090.2,4090.1,1.9943]
[1761662723708,3.2814,4090.2,4090.1,9.9943]
[1761662723909,3.2814,4090.2,4090.1,1.9943]
[1761662724110,0.00256296,4092.1,4090.1,0.00225107]
[1761662724315,3.2078,4091.9,4090.3,11.00218]
[1761662724609,3.2078,4091.9,4091.0,0.44]
[1761662724805,3.2078,4091.7,4090.4,3.14422826]
[1761662725009,3.2078,4091.2,4090.5,0.51366]
[1761662725315,0.00256296,4092.1,4090.5,0.00205406]
[1761662725316,4.0289,4090.7,4090.5,0.00205406]
[1761662725614,4.0289,4090.7,4087.7,3.40723811]
[1761662725615,2.0017,4090.5,4087.7,3.40723811]
[1761662725818,3.2078,4089.8,4088.2,3.2078]
[1761662726110,0.0736,4089.6,4088.7,3.2078]
[1761662726311,2.0017,4088.9,4087.1,3.2078]
[1761662726507,3.2078,4087.7,4087.2,0.44041]
[1761662726708,0.8211,4087.8,4087.7,0.44036]
[1761662727018,0.0736,4087.8,4087.6,0.44037]
[1761662727313,0.8211,4088.8,4088.6,0.44026]
[1761662727510,0.8211,4089.6,4089.2,0.4402]
[1761662727716,0.8211,4089.6,4089.0,0.44022]
[1761662727914,0.8211,4089.6,4087.7,3.28457019]
[1761662727915,2.0017,4089.0,4087.7,3.21097019]
[1761662728114,6.0306,4087.8,4086.7,0.19344027]
[1761662728326,0.14967496,4087.4,4086.2,0.44052]
[1761662728509,3.2078,4087.2,4086.2,0.00291773]
[1761662729117,3.2078,4087.2,4086.3,3.18667303]
[1761662729319,0.00232986,4087.4,4086.4,3.2078]
[1761662729514,0.00232986,4087.4,4087.1,3.64822]
[1761662729712,3.2078,4088.9,4087.8,0.44034]
[1761662729908,2.0017,4088.1,4087.2,3.11307303]
[1761662730112,11.00352,4089.9,4086.2,0.00291773]
[1761662730113,2.0017,4087.2,4086.2,0.00291773]
[1761662730320,5.2095,4086.3,4084.9,3.2078]
[1761662730524,3.2078,4085.8,4084.9,3.2078]
[1761662730727,3.2078,4085.8,4085.2,0.44063]
[1761662730927,0.8211,4086.0,4084.9,3.40325421]
[1761662731132,3.2078,4086.5,4085.8,0.44056]
[1761662731318,2.0017,4085.9,4085.8,0.0022796]
[1761662731524,2.0017,4085.9,4082.1,11.02411]
[1761662731525,2.0017,4085.6,4082.9,3.2078]
[1761662731720,2.22730482,4083.7,4082.9,3.2078]
[1761662732018,0.8211,4084.2,4083.6,0.4408]
[1761662732222,1.04670482,4084.2,4084.1,0.44075]
[1761662732526,1.04670482,4084.2,4082.8,1.10222]
[1761662732527,2.0017,4084.1,4082.4,0.44094]
[1761662732721,0.8211,4084.2,4082.4,0.44093]
[1761662732722,0.22560482,4082.9,4082.4,0.44093]
[1761662732917,0.22560482,4082.9,4081.2,11.02674]
[1761662732918,2.0017,4083.0,4082.6,0.44091]
[1761662733123,0.22560482,4082.7,4082.6,0.44092]
[1761662733323,3.2078,4083.6,4083.1,0.44085]
[1761662733524,3.2078,4083.6,4081.9,11.02478]
[1761662733525,2.0017,4083.3,4081.8,0.04262937]
[1761662733723,2.0017,4081.8,4079.6,3.2078]
[1761662734032,0.8211,4080.6,4080.3,0.44116]
[1761662734228,0.8211,4080.6,4079.6,6.35797979]
[1761662734229,2.0017,4082.1,4081.6,0.44102]
[1761662734431,2.0017,4082.8,4081.6,3.2078]
[1761662734726,0.2445,4082.4,4081.7,3.27116305]
[1761662734928,2.3171,4081.7,4080.3,3.2078]
[1761662735136,2.0726,4081.0,4079.5,3.2078]
[1761662735434,0.2445,4080.0,4079.5,3.2078]
[1761662735621,0.2445,4080.0,4077.2,11.0375]
[1761662735622,2.0726,4079.9,4078.3,3.2078]
[1761662735926,2.0726,4079.2,4077.8,3.23232303]
[1761662736131,3.2078,4079.8,4078.4,0.44137]
[1761662736331,2.0726,4080.3,4079.3,3.2078]
[1761662736532,40.8,4080.5,4079.8,3.2078]
[1761662736719,5.2804,4081.1,4080.3,3.2078]
[1761662737024,2.0726,4080.5,4078.5,0.04266586]
[1761662737220,4.5553,4080.6,4077.8,0.02452303]
[1761662737221,2.0726,4078.9,4077.8,0.02452303]
[1761662737419,5.2804,4078.2,4076.5,3.2078]
[1761662737722,0.2445,4080.3,4078.2,1.9621]
[1761662737923,0.2445,4076.5,4075.3,3.2078]
[1761662738230,0.2445,4076.5,4074.4,0.00648451]
[1761662738231,3.2078,4076.1,4074.4,0.00648451]
[1761662738436,3.2078,4074.9,4074.4,0.00648451]
[1761662738624,3.2078,4074.8,4074.4,0.00648451]
[1761662738824,0.04510468,4076.5,4074.4,0.00648451]
[1761662738825,3.2078,4074.5,4074.4,0.00648451]
[1761662739025,2.0726,4074.4,4072.0,1.91690062]
[1761662739242,2.0726,4072.8,4070.2,3.2078]
[1761662739424,3.2078,4071.9,4070.7,1.9621]
[1761662739624,3.2078,4075.1,4071.9,3.2078]
[1761662739931,3.2078,4076.3,4075.0,3.2078]
[1761662740233,3.2078,4078.4,4077.1,0.4415]
[1761662740435,3.2078,4078.4,4076.1,14.24827]
[1761662740436,3.2078,4079.2,4077.5,3.2078]
[1761662740728,3.2078,4080.4,4079.1,3.2078]
[1761662740930,2.72660281,4080.4,4079.5,0.44125]
[1761662741135,3.2078,4082.0,4080.1,1.3473]
[1761662741433,1.284598,4083.2,4082.6,2.9633]
[1761662741634,1.7093259,4084.8,4082.6,2.9633]
[1761662741827,0.00182728,4084.8,4083.3,3.2078]
[1761662742021,0.44069,4084.7,4083.3,3.2078]
[1761662742221,0.00182728,4084.8,4084.1,3.2078]
[1761662742426,0.00182728,4084.8,4082.7,1.9621]
[1761662742427,0.3706119,4084.6,4083.2,3.2078]
[1761662742623,0.3706119,4084.6,4082.7,1.9621]
[1761662742624,0.37243918,4084.8,4083.7,3.2078]
[1761662742825,2.7278,4084.1,4081.9,14.697]
[1761662743028,0.3706119,4082.1,4082.0,1.9621]
[1761662743223,0.3706119,4082.0,4081.0,3.2078]
[1761662743427,0.3706119,4081.1,4081.0,3.2078]
[1761662743630,2.0726,4082.4,4081.0,3.2078]
[1761662743830,3.2078,4082.5,4081.1,1.9621]
[1761662744030,3.2078,4082.5,4081.0,3.2078]
[1761662744031,0.3706119,4081.1,4080.3,1.9621]
[1761662744224,0.3706119,4081.9,4080.3,1.96509286]
[1761662744425,0.00181967,4082.5,4081.5,1.9621]
[1761662744630,0.00181967,4082.5,4081.9,3.2078]
[1761662744827,0.00181967,4082.5,4082.0,1.9621]
[1761662745034,3.2078,4085.0,4082.5,1.9621]
[1761662745234,3.2078,4085.0,4083.7,3.2078]
[1761662745437,3.2078,4085.5,4084.4,1.9621]
[1761662745642,3.2078,4085.4,4084.4,1.9621]
[1761662745931,0.3706119,4085.2,4084.4,0.00180552]
[1761662746122,0.00176082,4085.4,4084.4,0.00180552]
[1761662746322,0.00176082,4085.4,4084.8,3.2078]
[1761662746535,0.00176082,4085.4,4084.4,0.00180552]
[1761662746536,2.4432119,4085.2,4084.4,0.00180552]
[1761662746831,0.00176082,4085.4,4084.4,0.00180552]
[1761662747031,0.3706119,4085.0,4084.4,0.00180552]
[1761662747238,5.2804,4085.3,4084.4,3.20960552]
[1761662747435,3.2078,4085.3,4084.4,0.00180552]
[1761662747734,2.4432119,4084.5,4084.4,0.00180552]
[1761662748128,2.58691,4084.5,4084.4,0.00180552]
[1761662748439,2.0726,4084.3,4082.7,1.9621]
[1761662748735,2.51334,4084.3,4083.1,3.2078]
[1761662749037,0.36880638,4083.2,4081.9,1.9621]
[1761662749239,2.0726,4083.5,4082.4,3.2078]
[1761662749429,3.2078,4084.1,4082.5,1.9621]
[1761662749829,0.44068,4084.8,4083.1,1.9621]
[1761662750035,3.2078,4084.9,4084.2,3.2078]
[1761662750234,3.2078,4085.1,4084.2,3.2078]
[1761662750433,3.2078,4085.1,4081.9,1.10542766]
[1761662750434,2.0726,4085.3,4084.3,3.2078]
[1761662750638,2.0726,4085.0,4083.6,3.2078]
[1761662750829,40.8736,4085.2,4083.6,3.2078]
[1761662750830,2.0726,4084.8,4083.6,3.2078]
[1761662751135,40.8,4085.2,4084.6,3.2078]
[1761662751436,0.0736,4085.1,4084.5,3.2078]
[1761662751628,0.0736,4085.1,4083.7,5.1699]
[1761662751629,0.36880638,4084.6,4083.7,5.1699]
[1761662751830,2.0726,4085.0,4084.5,3.2078]
[1761662752026,0.00176082,4085.4,4084.5,3.2078]
[1761662752230,0.00176082,4085.4,4083.7,1.10199]
[1761662752231,0.00176082,4085.4,4085.1,3.2078]
[1761662752434,44.0078,4086.6,4085.2,0.44063]
[1761662752732,2.0726,4088.3,4086.2,3.2078]
[1761662752934,11.00282,4090.1,4085.1,0.0026655]
[1761662752935,2.0726,4087.7,4086.1,3.2078]
[1761662753141,2.0726,4086.9,4086.1,3.2078]
[1761662753343,0.44051,4086.4,4085.4,3.2078]
[1761662753532,11.01325,4086.2,4085.4,2.64826]
[1761662753735,0.44085,4083.2,4081.8,1.9621]
[1761662754031,0.44085,4083.2,4081.2,4.566]
[1761662754032,3.2078,4082.7,4081.2,4.566]
[1761662754233,3.2078,4083.7,4082.0,0.44098]
[1761662754437,3.2078,4082.7,4081.8,3.12012199]
[1761662754632,5.2804,4082.1,4081.8,0.00274797]
[1761662754837,3.2078,4082.1,4081.8,0.00274797]
[1761662755538,2.1462,4082.0,4080.2,3.2078]
[1761662755734,3.2078,4082.1,4080.9,3.2078]
[1761662755939,0.00315322,4082.7,4082.0,1.9621]
[1761662756334,3.2078,4083.4,4082.1,2.0357]
[1761662756534,3.2078,4083.4,4080.6,1.10282]
[1761662756535,3.2078,4082.3,4081.5,3.2078]
[1761662756731,2.0726,4081.6,4079.7,1.9621]
[1761662757037,2.0726,4081.6,4080.0,0.4412]
[1761662757038,3.2078,4080.9,4080.0,0.4412]
[1761662757234,3.2078,4080.3,4079.6,3.2078]
[1761662757436,5.2804,4079.8,4079.6,0.00281839]
[1761662757634,0.00299405,4080.3,4079.7,1.9621]
[1761662757829,2.0726,4082.5,4080.5,1.9621]
[1761662758036,3.2078,4081.6,4079.8,2.0357]
[1761662758337,40.8,4081.5,4080.7,1.9621]
[1761662758543,40.8,4081.5,4080.3,3.19760427]
[1761662758544,44.0078,4081.5,4080.3,3.19760427]
[1761662758731,44.01085133,4081.5,4080.5,1.9621]
[1761662758940,44.01085133,4081.5,4081.0,1.9621]
[1761662758941,0.00305133,4081.5,4081.0,1.9621]
[1761662759134,3.2078,4082.8,4081.7,1.9621]
[1761662759340,1.84117,4085.0,4082.7,5.1699]
[1761662759341,3.2078,4084.2,4082.7,5.1699]
[1761662759641,42.8726,4084.1,4082.7,1.9621]
[1761662759941,3.2078,4083.9,4083.0,3.2078]
[1761662760136,3.2078,4083.9,4082.7,1.9621]
[1761662760339,2.0726,4081.3,4079.7,3.2078]
[1761662760639,2.0726,4081.2,4080.3,3.2078]
[1761662760831,2.0726,4081.1,4079.7,3.2078]
[1761662761035,1.6733,4079.7,4078.2,3.21085547]
[1761662761236,3.2078,4078.5,4078.2,0.00233956]
[1761662761437,3.2078,4079.0,4078.2,0.00233956]
[1761662761632,40.8,4078.9,4078.2,0.00233956]
[1761662761844,3.2078,4079.6,4078.2,5.17223956]
[1761662762148,1.6733,4079.0,4078.2,0.00233956]
[1761662762341,1.6733,4079.0,4077.5,1.9621]
[1761662762342,1.6733,4078.5,4077.2,3.2078]
[1761662762544,3.2078,4078.1,4077.2,3.2078]
[1761662762743,0.0736,4078.4,4077.9,3.2078]
[1761662762939,3.2078,4079.5,4078.2,3.2078]
[1761662763242,0.0017272,4079.7,4077.0,1.3582]
[1761662763243,3.2078,4078.9,4077.6,3.2078]
[1761662763435,40.8,4078.8,4078.6,3.2078]
[1761662763637,3.2078,4079.5,4078.7,1.9621]
[1761662763837,0.0736,4079.4,4077.9,5.1699]
[1761662764041,42.471,4078.7,4077.9,3.2078]
[1761662764232,40.8,4078.7,4077.9,3.2078]
[1761662764436,0.0017272,4079.7,4078.5,3.4309]
[1761662764743,3.2078,4082.2,4080.2,1.10294]
[1761662765047,3.2078,4082.2,4079.6,3.2078]
[1761662765048,3.2078,4082.2,4081.4,3.4309]
[1761662765244,11.01871,4084.2,4081.4,3.4309]
[1761662765245,3.2078,4082.1,4081.4,3.4309]
[1761662765537,3.20976103,4082.1,4081.4,0.00196675]
[1761662765739,0.00196103,4082.1,4081.6,3.4309]
[1761662766042,3.2078,4083.4,4082.1,3.4309]
[1761662766239,1.10172,4084.8,4082.4,3.2078]
[1761662766240,3.2078,4083.3,4082.4,3.2078]
[1761662766440,3.2078,4084.3,4083.3,0.44083]
[1761662766637,3.2078,4084.3,4083.8,3.4309]
[1761662767138,3.2078,4085.6,4084.2,4.5453]
[1761662767346,2.8100559,4088.5,4084.2,4.5453]
[1761662767347,3.2078,4086.6,4085.6,3.4309]
[1761662767738,3.2078,4086.6,4086.0,3.1986]
[1761662767947,3.2078,4087.1,4086.2,0.44052]
[1761662768245,3.2078,4088.3,4086.8,3.1986]
[1761662768443,11.00282,4090.1,4086.3,3.21549945]
[1761662768444,3.2078,4086.9,4086.3,3.14189945]
[1761662768644,3.2078,4087.8,4086.8,0.00175688]
[1761662768954,3.2078,4087.9,4086.8,0.00175688]
[1761662769144,3.2078,4087.8,4086.8,0.00175688]
[1761662769342,3.2078,4087.8,4086.8,3.20035688]
[1761662769539,0.00188681,4088.3,4086.8,3.20035688]
[1761662769540,2.11403,4087.1,4086.8,0.00175688]
[1761662769742,2.11403,4087.1,4085.2,3.1986]
[1761662769743,1.6736,4087.0,4085.3,3.2078]
[1761662769948,3.2078,4086.6,4085.3,3.2078]
[1761662770445,40.8,4086.5,4085.2,3.63923]
[1761662770645,40.8,4086.5,4085.9,3.2078]
[1761662770846,3.2078,4087.2,4086.4,3.2078]
[1761662771045,3.2078,4087.2,4086.6,0.44048]
[1761662771247,0.00188681,4088.3,4087.2,3.1986]
[1761662771248,40.8,4088.2,4087.2,3.1986]
[1761662771553,0.00188681,4088.3,4087.9,3.1986]
[1761662771741,0.00012993,4088.3,4088.1,3.1986]
[1761662771942,0.00012993,4088.3,4087.9,3.1986]
[1761662772148,0.44033,4088.1,4087.2,3.1986]
[1761662772346,3.2078,4087.3,4086.4,6.4064]
[1761662772648,3.2078,4087.3,4086.5,3.1986]
[1761662772848,1.67372993,4088.3,4086.5,3.1986]
[1761662772849,3.2078,4087.9,4087.0,3.1986]
[1761662773045,0.00012993,4088.3,4087.8,1.3293]
[1761662773242,0.00012993,4088.3,4087.9,3.1986]
[1761662773445,3.2078,4088.1,4087.8,1.3293]
[1761662773655,0.00012993,4088.3,4087.8,1.3293]
[1761662774149,0.00012993,4088.3,4088.0,3.1986]
[1761662774554,0.00012993,4088.3,4087.8,1.3293]
[1761662774555,3.2078,4088.2,4087.8,1.3293]
[1761662774751,0.44032,4088.1,4087.3,3.1986]
[1761662774944,3.2078,4088.2,4087.3,3.1986]
[1761662775148,3.64817,4087.7,4087.3,3.1986]
[1761662775353,3.20792993,4088.3,4087.3,3.1986]
[1761662775751,0.00012993,4088.3,4087.5,3.1986]
[1761662776142,0.00012993,4088.3,4087.9,3.63894]
[1761662776353,0.00012993,4088.3,4088.2,3.1986]
[1761662776548,3.20792993,4088.3,4087.8,1.3293]
[1761662776752,3.20792993,4088.3,4088.0,3.2078]
[1761662776753,0.00012993,4088.3,4088.0,3.2078]
[1761662776945,0.00012993,4088.3,4088.1,3.1986]
[1761662777151,3.2078,4090.7,4089.4,0.44017]
[1761662777348,10.99648,4092.5,4088.6,3.1986]
[1761662777349,3.2078,4091.3,4090.3,3.1986]
[1761662777557,3.2078,4091.3,4090.5,3.1986]
[1761662777755,3.2078,4091.3,4090.7,3.1986]
[1761662777961,3.2078,4092.0,4091.0,3.2078]
[1761662778153,3.2078,4092.5,4091.6,3.1986]
[1761662778347,3.2078,4093.4,4092.1,3.1986]
[1761662778552,0.43986,4092.4,4092.1,3.1986]
[1761662778762,3.2078,4092.7,4092.1,3.1986]
[1761662778763,0.43985,4092.5,4092.1,3.1986]
[1761662779062,0.43985,4092.5,4091.2,3.1986]
[1761662779063,3.2078,4092.2,4091.2,3.1986]
[1761662779357,3.2078,4092.2,4090.7,3.20996169]
[1761662779358,3.2078,4091.5,4090.7,0.00216169]
[1761662779652,0.0025885,4092.5,4091.2,3.1986]
[1761662779859,0.44002,4091.0,4090.7,0.00216169]
[1761662780050,0.43995,4091.6,4090.7,0.00216169]
[1761662780256,0.43995,4091.6,4090.7,3.20076169]
[1761662780562,3.2078,4091.2,4090.7,3.20076169]
[1761662780857,0.44003,4090.9,4090.7,0.00216169]
[1761662781255,3.3949,4090.8,4090.7,0.00216169]
[1761662781453,10.99856,4091.7,4090.7,3.20076169]
[1761662781454,0.43997,4091.4,4090.7,3.20076169]
[1761662781658,3.2078,4092.2,4090.8,3.1986]
[1761662781852,40.8,4092.1,4090.8,3.1986]
[1761662782053,3.2078,4091.6,4091.0,3.1986]
[1761662782254,0.43998,4091.3,4090.7,0.00216169]
[1761662782453,0.43997,4091.4,4090.7,0.00216169]
[1761662782757,3.2078,4091.6,4090.7,0.00216169]
[1761662782758,0.43998,4091.3,4090.7,0.00216169]
[1761662782960,0.44003,4090.9,4090.7,0.00216169]
[1761662783255,3.2078,4091.6,4090.7,3.20996169]
[1761662783460,0.43995,4091.5,4090.7,3.20996169]
[1761662783656,0.43998,4091.3,4090.7,0.00216169]
[1761662784259,0.43996,4091.5,4090.7,0.00216169]
[1761662784456,0.43995,4091.5,4090.7,0.00216169]
[1761662784755,3.2078,4091.6,4090.7,0.00216169]
[1761662784960,1.09977,4092.0,4089.4,3.2078]
[1761662784961,0.44006,4090.5,4089.4,3.2078]
[1761662785156,0.4401,4090.2,4089.4,3.2078]
[1761662785355,3.64788,4090.4,4089.5,3.1986]
[1761662785555,3.64788,4090.4,4089.7,3.1986]
[1761662785556,3.2078,4090.4,4089.7,3.1986]
[1761662785857,0.44002,4090.9,4090.2,3.1986]
[1761662786052,3.2078,4091.1,4090.2,3.1986]
[1761662786250,3.6478,4091.1,4090.3,3.2722]
[1761662786452,40.8,4091.0,4090.3,3.1986]